[Event "78th GEO-ch Women 1st League 2021"]
[Site "Tbilisi"]
[Date "2021.03.24"]
[Round "7.9"]
[White "Dolakidze, Mariam"]
[Black "Gvatua, Mariam"]
[Result "1/2-1/2"]
[ECO "D02"]
[WhiteElo "1416"]
[BlackElo "1343"]
[Annotator "NA RC"]
[PlyCount "64"]
[EventDate "2021.03.18"]
[EventType "swiss"]
[EventCountry "GEO"]
[SourceTitle "playchess.com"]
[Source "ChessBase"]
[SourceQuality "1"]
[TimeControl "5400+30"]

1. Nf3 {[%emt 0:04:41]} d5 {[%emt 0:00:00]} 2. g3 {[%emt 0:00:20]} Nc6 {[%emt 0:00:00]} 3. d4 {[%emt 0:00:09]} Bg4 {[%emt 0:00:00]} 4. Bg2 {[%emt 0:00:05]} Qd7 {[%emt 0:00:00]} 5. h3 {[%emt 0:00:33]} Bxf3 {[%emt 0:00:00]} 6. Bxf3 {[%emt 0:00:05]} O-O-O {[%emt 0:00:00]} 7. e3 {[%emt 0:00:29]} e5 {[%emt 0:00:19]} 8. dxe5 {[%emt 0:00:07]} Nxe5 {[%emt 0:00:03]} 9. Bg2 {[%emt 0:00:05]} Nf6 {[%emt 0:00:31]} 10. b3 {[%emt 0:01:07]} Bb4+ {[%emt 0:02:30]} 11. Bd2 {[%emt 0:00:21]} Bxd2+ {[%emt 0:00:13]} 12. Nxd2 {[%emt 0:00:04]} d4 {[%emt 0:03:41]} 13. e4 {[%emt 0:12:43]} Rhe8 {[%emt 0:01:04]} 14. O-O {[%emt 0:00:17]} Ng6 {[%emt 0:00:34]} 15. Re1 {[%emt 0:03:23]} Qb5 {[%emt 0:01:12]} 16. Qe2 {[%emt 0:00:36]} Qxe2 {[%emt 0:00:11]} 17. Rxe2 {[%emt 0:00:06]} c5 {[%emt 0:00:09]} 18. Nc4 {[%emt 0:00:27]} Ne5 {[%emt 0:00:23]} 19. Nxe5 {[%emt 0:00:42]} Rxe5 {[%emt 0:00:52]} 20. f4 {[%emt 0:03:22]} Ree8 {[%emt 0:00:12]} 21. e5 {[%emt 0:00:04]} Nd5 {[%emt 0:00:10]} 22. Bxd5 {[%emt 0:00:05]} Rxd5 {[%emt 0:00:04]} 23. Rae1 {[%emt 0:00:09]} Kd7 {[%emt 0:00:18]} 24. a3 {[%emt 0:02:06]} a6 {[%emt 0:00:07]} 25. a4 {[%emt 0:00:36]} a5 {[%emt 0:00:11]} 26. Kf2 {[%emt 0:00:07]} b6 {[%emt 0:00:14]} 27. Rd2 {[%emt 0:00:20]} h6 {[%emt 0:00:21]} 28. h4 {[%emt 0:00:23]} Kc6 {[%emt 0:00:17]} 29. Kf3 {[%emt 0:00:56]} h5 {[%emt 0:00:15]} 30. Ree2 {[%emt 0:00:28]} g6 {[%emt 0:00:07]} 31. Kf2 {[%emt 0:00:07]} Re6 {[%emt 0:00:15]} 32. Rd1 {[%emt 0:02:24]} Re7 {[%emt 0:01:40]} 1/2-1/2

[Event "78th GEO-ch Women 1st League 2021"]
[Site "Tbilisi"]
[Date "2021.03.24"]
[Round "7.10"]
[White "Esadze, Tamari"]
[Black "Bedoshvili, Dea"]
[Result "1-0"]
[ECO "B06"]
[WhiteElo "1889"]
[BlackElo "1667"]
[Annotator "NA RC"]
[PlyCount "77"]
[EventDate "2021.03.18"]
[EventType "swiss"]
[EventCountry "GEO"]
[SourceTitle "playchess.com"]
[Source "ChessBase"]
[SourceQuality "1"]
[TimeControl "5400+30"]

1. e4 {[%emt 0:00:00]} g6 {[%emt 0:04:29]} 2. d4 {[%emt 0:00:00]} Bg7 {[%emt 0:00:05]} 3. Nc3 {[%emt 0:00:00]} d6 {[%emt 0:00:02]} 4. Nf3 {[%emt 0:00:00]} Nd7 {[%emt 0:00:08]} 5. Bc4 {[%emt 0:00:22]} e6 {[%emt 0:01:07]} 6. O-O {[%emt 0:00:23]} a6 {[%emt 0:00:37]} 7. a4 {[%emt 0:00:11]} Ne7 {[%emt 0:00:15]} 8. Be3 {[%emt 0:01:20]} O-O {[%emt 0:00:47]} 9. Qd2 {[%emt 0:01:27]} c5 {[%emt 0:01:42]} 10. dxc5 {[%emt 0:09:16]} dxc5 {[%emt 0:00:10]} 11. Qd6 {[%emt 0:08:10]} Qb6 {[%emt 0:16:05]} 12. Qxb6 {[%emt 0:15:22]} Nxb6 {[%emt 0:00:05]} 13. Bb3 {[%emt 0:00:51]} Nd7 {[%emt 0:02:08]} 14. a5 {[%emt 0:05:17]} Nc6 {[%emt 0:04:20]} 15. Rfd1 {[%emt 0:02:14]} Bf6 {[%emt 0:13:25]} 16. Ba4 {[%emt 0:04:00]} Be7 {[%emt 0:03:14]} 17. Bxc6 {[%emt 0:01:12]} bxc6 {[%emt 0:00:04]} 18. Na4 {[%emt 0:02:03]} e5 {[%emt 0:04:48]} 19. Nb6 {[%emt 0:03:42]} Nxb6 {[%emt 0:01:18]} 20. axb6 {[%emt 0:00:02]} Rb8 {[%emt 0:01:40]} 21. Nxe5 {[%emt 0:00:38]} Rxb6 {[%emt 0:00:04]} 22. Nd7 {[%emt 0:08:28]} Bxd7 {[%emt 0:00:08]} 23. Rxd7 {[%emt 0:00:02]} Re8 {[%emt 0:02:28]} 24. Rxe7 {[%emt 0:00:03]} Rxe7 {[%emt 0:00:07]} 25. Bxc5 {[%emt 0:00:02]} Reb7 {[%emt 0:00:11]} 26. Bxb6 {[%emt 0:00:04]} Rxb6 {[%emt 0:00:04]} 27. b3 {[%emt 0:00:11]} Kg7 {[%emt 0:00:13]} 28. Kf1 {[%emt 0:03:11]} Kf6 {[%emt 0:00:16]} 29. Ra5 {[%emt 0:00:14]} Ke6 {[%emt 0:00:24]} 30. Ke2 {[%emt 0:00:03]} f6 {[%emt 0:00:46]} 31. Kd3 {[%emt 0:00:25]} Kd6 {[%emt 0:01:27]} 32. Kc4 {[%emt 0:00:48]} Rb8 {[%emt 0:09:25]} 33. Rxa6 {[%emt 0:00:55]} Re8 {[%emt 0:00:02]} 34. Kd4 {[%emt 0:00:42]} h5 {[%emt 0:01:33]} 35. c4 {[%emt 0:01:50]} Rb8 {[%emt 0:01:37]} 36. c5+ {[%emt 0:00:08]} Kd7 {[%emt 0:00:42]} 37. Kc4 {[%emt 0:01:48]} Re8 {[%emt 0:00:05]} 38. Ra7+ {[%emt 0:00:29]} Ke6 {[%emt 0:00:13]} 39. Rc7 {[%emt 0:33:37]} 1-0

[Event "78th GEO-ch Women 1st League 2021"]
[Site "Tbilisi"]
[Date "2021.03.24"]
[Round "7.11"]
[White "Mkrtchyan, Aida"]
[Black "Mamardashvili, Ana"]
[Result "0-1"]
[ECO "C50"]
[WhiteElo "1156"]
[BlackElo "1416"]
[Annotator "NA RC"]
[PlyCount "78"]
[EventDate "2021.03.18"]
[EventType "swiss"]
[EventCountry "GEO"]
[SourceTitle "playchess.com"]
[Source "ChessBase"]
[SourceQuality "1"]
[TimeControl "5400+30"]

1. e4 {[%emt 0:00:00]} e5 {[%emt 0:03:59]} 2. Nf3 {[%emt 0:00:00]} Nc6 {[%emt 0:00:06]} 3. d4 {[%emt 0:00:06]} exd4 {[%emt 0:00:21]} 4. Bc4 {[%emt 0:00:22]} Be7 {[%emt 0:09:10]} 5. c3 {[%emt 0:01:26]} d3 {[%emt 0:01:34]} 6. Qxd3 {[%emt 0:01:03]} d6 {[%emt 0:01:18]} 7. O-O {[%emt 0:03:49]} Nf6 {[%emt 0:02:15]} 8. Bb5 {[%emt 0:02:44]} Bd7 {[%emt 0:05:24]} 9. Bf4 {[%emt 0:02:58]} O-O {[%emt 0:00:49]} 10. Nbd2 {[%emt 0:02:51]} a6 {[%emt 0:02:31]} 11. Ba4 {[%emt 0:00:44]} Ne5 {[%emt 0:04:05]} 12. Qc2 {[%emt 0:01:24]} Ng6 {[%emt 0:12:09]} 13. Bg3 {[%emt 0:02:11]} b5 {[%emt 0:00:41]} 14. Bb3 {[%emt 0:00:38]} c5 {[%emt 0:02:37]} 15. c4 {[%emt 0:01:59]} Nh5 {[%emt 0:04:07]} 16. Qd3 {[%emt 0:02:49]} Nxg3 {[%emt 0:05:42]} 17. fxg3 {[%emt 0:00:17]} Qc7 {[%emt 0:00:37]} 18. cxb5 {[%emt 0:02:07]} axb5 {[%emt 0:00:14]} 19. Bd5 {[%emt 0:00:36]} Rac8 {[%emt 0:01:40]} 20. h4 {[%emt 0:02:22]} c4 {[%emt 0:00:57]} 21. Qe2 {[%emt 0:02:37]} Qc5+ {[%emt 0:02:17]} 22. Kh1 {[%emt 0:01:04]} Bg4 {[%emt 0:01:31]} 23. Rac1 {[%emt 0:05:07]} Ne5 {[%emt 0:03:17]} 24. Nb3 {[%emt 0:02:51]} Qa7 {[%emt 0:00:40]} 25. Nbd4 {[%emt 0:01:03]} Qxd4 {[%emt 0:05:11]} 26. Nxd4 {[%emt 0:02:21]} Bxe2 {[%emt 0:00:04]} 27. Nxe2 {[%emt 0:00:28]} Nd3 {[%emt 0:00:40]} 28. Rb1 {[%emt 0:03:28]} Bf6 {[%emt 0:02:19]} 29. Nc3 {[%emt 0:02:01]} b4 {[%emt 0:00:37]} 30. Nb5 {[%emt 0:01:08]} Be5 {[%emt 0:04:05]} 31. g4 {[%emt 0:04:12]} c3 {[%emt 0:01:27]} 32. bxc3 {[%emt 0:01:51]} bxc3 {[%emt 0:00:12]} 33. a4 {[%emt 0:01:40]} c2 {[%emt 0:00:47]} 34. a5 {[%emt 0:00:21]} cxb1=Q {[%emt 0:00:31]} 35. Rxb1 {[%emt 0:00:18]} Nc5 {[%emt 0:04:40]} 36. Na3 {[%emt 0:03:52]} Rb8 {[%emt 0:01:09]} 37. Rf1 {[%emt 0:01:05]} Rb4 {[%emt 0:02:13]} 38. g5 {[%emt 0:02:12]} Nxe4 {[%emt 0:01:18]} 39. Nc4 {[%emt 0:00:59]} Ng3+ {[%emt 0:00:14]} 0-1

[Event "78th GEO-ch Women 1st League 2021"]
[Site "Tbilisi"]
[Date "2021.03.25"]
[Round "8.5"]
[White "Oniani, Tamar"]
[Black "Esadze, Tamari"]
[Result "0-1"]
[ECO "D50"]
[WhiteElo "1604"]
[BlackElo "1889"]
[Annotator "NA RC"]
[PlyCount "66"]
[EventDate "2021.03.18"]
[EventType "swiss"]
[EventCountry "GEO"]
[SourceTitle "playchess.com"]
[Source "ChessBase"]
[SourceQuality "1"]
[TimeControl "5400+30"]

1. d4 {[%emt 0:02:39]} d5 {[%emt 0:00:00]} 2. c4 {[%emt 0:00:04]} e6 {[%emt 0:00:00]} 3. Nc3 {[%emt 0:00:04]} Nf6 {[%emt 0:00:00]} 4. Bg5 {[%emt 0:00:05]} Bb4 {[%emt 0:00:11]} 5. Qa4+ {[%emt 0:01:50]} Nc6 {[%emt 0:00:06]} 6. e3 {[%emt 0:00:01]} O-O {[%emt 0:01:22]} 7. Nf3 {[%emt 0:01:41]} h6 {[%emt 0:02:02]} 8. Bh4 {[%emt 0:03:14]} g5 {[%emt 0:06:39]} 9. Bg3 {[%emt 0:00:16]} Ne4 {[%emt 0:00:11]} 10. Qc2 {[%emt 0:13:16]} f5 {[%emt 0:01:47]} 11. a3 {[%emt 0:04:45]} Bxc3+ {[%emt 0:09:48]} 12. bxc3 {[%emt 0:00:07]} Ne7 {[%emt 0:03:50]} 13. Ne5 {[%emt 0:03:22]} Qe8 {[%emt 0:02:51]} 14. f3 {[%emt 0:02:47]} Nf6 {[%emt 0:00:44]} 15. c5 {[%emt 0:05:55]} b6 {[%emt 0:03:02]} 16. cxb6 {[%emt 0:18:27]} cxb6 {[%emt 0:01:15]} 17. a4 {[%emt 0:02:44]} Bd7 {[%emt 0:04:20]} 18. h4 {[%emt 0:05:22]} g4 {[%emt 0:09:04]} 19. Bf4 {[%emt 0:01:26]} Kg7 {[%emt 0:04:00]} 20. h5 {[%emt 0:04:17]} Rg8 {[%emt 0:07:54]} 21. fxg4 {[%emt 0:05:56]} Ne4 {[%emt 0:02:12]} 22. Bd3 {[%emt 0:02:51]} Kh7 {[%emt 0:01:50]} 23. gxf5 {[%emt 0:05:55]} exf5 {[%emt 0:00:03]} 24. g4 {[%emt 0:00:03]} Rc8 {[%emt 0:03:26]} 25. c4 {[%emt 0:03:42]} Nc6 {[%emt 0:04:51]} 26. Nxd7 {[%emt 0:00:55]} Qxd7 {[%emt 0:00:35]} 27. Rb1 {[%emt 0:04:29]} Rxg4 {[%emt 0:01:33]} 28. Rb5 {[%emt 0:01:16]} Nxd4 {[%emt 0:04:34]} 29. exd4 {[%emt 0:03:31]} Rxf4 {[%emt 0:00:03]} 30. Qh2 {[%emt 0:00:40]} Nf2 {[%emt 0:09:25]} 31. Kd2 {[%emt 0:03:05]} Nxd3 {[%emt 0:00:52]} 32. Kxd3 {[%emt 0:00:04]} dxc4+ {[%emt 0:00:03]} 33. Kc2 {[%emt 0:00:02]} Qxd4 {[%emt 0:00:43]} 0-1

[Event "78th GEO-ch Women 1st League 2021"]
[Site "Tbilisi"]
[Date "2021.03.25"]
[Round "8.6"]
[White "Mgeladze, Kesaria"]
[Black "Sichinava, Mariam"]
[Result "0-1"]
[ECO "B22"]
[WhiteElo "1380"]
[BlackElo "1516"]
[Annotator "NA RC"]
[PlyCount "84"]
[EventDate "2021.03.18"]
[EventType "swiss"]
[EventCountry "GEO"]
[SourceTitle "playchess.com"]
[Source "ChessBase"]
[SourceQuality "1"]
[TimeControl "5400+30"]

1. e4 {[%emt 0:00:00]} c5 {[%emt 0:01:36]} 2. Nf3 {[%emt 0:00:00]} e6 {[%emt 0:00:25]} 3. c3 {[%emt 0:00:06]} Nf6 {[%emt 0:00:04]} 4. e5 {[%emt 0:00:12]} Nd5 {[%emt 0:00:03]} 5. d4 {[%emt 0:00:18]} cxd4 {[%emt 0:00:06]} 6. cxd4 {[%emt 0:00:08]} d6 {[%emt 0:00:24]} 7. Bc4 {[%emt 0:00:29]} Nb6 {[%emt 0:00:07]} 8. Bd3 {[%emt 0:00:22]} Nc6 {[%emt 0:00:23]} 9. a3 {[%emt 0:00:23]} Be7 {[%emt 0:02:49]} 10. O-O {[%emt 0:01:02]} O-O {[%emt 0:00:26]} 11. Qe2 {[%emt 0:00:54]} Nd5 {[%emt 0:04:52]} 12. Bd2 {[%emt 0:02:29]} b6 {[%emt 0:05:46]} 13. Qe4 {[%emt 0:01:20]} g6 {[%emt 0:00:53]} 14. Nc3 {[%emt 0:01:26]} dxe5 {[%emt 0:02:31]} 15. dxe5 {[%emt 0:00:25]} Bb7 {[%emt 0:02:38]} 16. Qe2 {[%emt 0:04:42]} Nxc3 {[%emt 0:08:00]} 17. Bxc3 {[%emt 0:00:37]} Qc7 {[%emt 0:01:11]} 18. Rac1 {[%emt 0:01:13]} Rfd8 {[%emt 0:00:31]} 19. Rfd1 {[%emt 0:00:48]} Rac8 {[%emt 0:01:46]} 20. Bb4 {[%emt 0:05:09]} Bxb4 {[%emt 0:01:50]} 21. axb4 {[%emt 0:00:04]} Qe7 {[%emt 0:00:17]} 22. b5 {[%emt 0:01:31]} Nb4 {[%emt 0:00:25]} 23. Bb1 {[%emt 0:01:16]} Nd5 {[%emt 0:04:13]} 24. Be4 {[%emt 0:04:42]} Qb4 {[%emt 0:02:17]} 25. Rxc8 {[%emt 0:10:02]} Rxc8 {[%emt 0:00:16]} 26. Ng5 {[%emt 0:07:30]} Kg7 {[%emt 0:17:31]} 27. Qf3 {[%emt 0:01:52]} Qe7 {[%emt 0:00:08]} 28. Nh3 {[%emt 0:01:41]} Rc5 {[%emt 0:01:26]} 29. Nf4 {[%emt 0:07:12]} Rxb5 {[%emt 0:00:30]} 30. Bxd5 {[%emt 0:01:30]} Bxd5 {[%emt 0:01:22]} 31. Qc3 {[%emt 0:00:15]} Qb4 {[%emt 0:02:22]} 32. Qg3 {[%emt 0:04:43]} Qb3 {[%emt 0:04:14]} 33. Qg4 {[%emt 0:01:10]} Rb4 {[%emt 0:07:10]} 34. Nh5+ {[%emt 0:02:56]} Kf8 {[%emt 0:00:21]} 35. Qe2 {[%emt 0:00:54]} gxh5 {[%emt 0:00:14]} 36. Qxh5 {[%emt 0:00:07]} Qc2 {[%emt 0:01:48]} 37. Qh6+ {[%emt 0:01:02]} Ke8 {[%emt 0:00:07]} 38. Rc1 {[%emt 0:00:22]} Qg6 {[%emt 0:00:44]} 39. Rc8+ {[%emt 0:01:13]} Kd7 {[%emt 0:00:01]} 40. Rd8+ {[%emt 0:00:45]} Kc7 {[%emt 0:01:58]} 41. Rc8+ {[%emt 0:00:25]} Kxc8 {[%emt 0:01:22]} 42. Qf8+ {[%emt 0:00:07]} Kb7 {[%emt 0:00:06]} 0-1

[Event "78th GEO-ch Women 1st League 2021"]
[Site "Tbilisi"]
[Date "2021.03.25"]
[Round "8.7"]
[White "Kirtadze, Anastasia"]
[Black "Dolakidze, Mariam"]
[Result "1/2-1/2"]
[ECO "A90"]
[WhiteElo "1810"]
[BlackElo "1416"]
[Annotator "NA RC"]
[PlyCount "112"]
[EventDate "2021.03.18"]
[EventType "swiss"]
[EventCountry "GEO"]
[SourceTitle "playchess.com"]
[Source "ChessBase"]
[SourceQuality "1"]
[TimeControl "5400+30"]

1. c4 {[%emt 0:00:00]} f5 {[%emt 0:00:12]} 2. g3 {[%emt 0:00:01]} e6 {[%emt 0:00:05]} 3. Bg2 {[%emt 0:00:09]} d5 {[%emt 0:00:08]} 4. cxd5 {[%emt 0:02:18]} exd5 {[%emt 0:00:10]} 5. d4 {[%emt 0:01:31]} Nf6 {[%emt 0:00:53]} 6. Nc3 {[%emt 0:01:02]} Ne4 {[%emt 0:00:28]} 7. Nh3 {[%emt 0:02:31]} c6 {[%emt 0:01:08]} 8. O-O {[%emt 0:01:41]} Bd6 {[%emt 0:00:28]} 9. Bf4 {[%emt 0:02:05]} O-O {[%emt 0:00:16]} 10. Bxd6 {[%emt 0:00:39]} Qxd6 {[%emt 0:00:08]} 11. f3 {[%emt 0:01:25]} Nxc3 {[%emt 0:01:09]} 12. bxc3 {[%emt 0:00:16]} Nd7 {[%emt 0:00:17]} 13. e4 {[%emt 0:01:36]} fxe4 {[%emt 0:00:28]} 14. fxe4 {[%emt 0:00:08]} dxe4 {[%emt 0:00:37]} 15. Rxf8+ {[%emt 0:10:50]} Nxf8 {[%emt 0:00:05]} 16. Ng5 {[%emt 0:00:16]} Be6 {[%emt 0:11:14]} 17. Nxe4 {[%emt 0:01:17]} Qc7 {[%emt 0:02:46]} 18. Qh5 {[%emt 0:02:31]} Bf7 {[%emt 0:00:43]} 19. Qg5 {[%emt 0:00:45]} Ne6 {[%emt 0:06:12]} 20. Qg4 {[%emt 0:02:25]} Kh8 {[%emt 0:00:23]} 21. Rf1 {[%emt 0:00:35]} Bg8 {[%emt 0:02:39]} 22. Bh3 {[%emt 0:06:57]} Rf8 {[%emt 0:01:23]} 23. Rxf8 {[%emt 0:03:12]} Nxf8 {[%emt 0:00:21]} 24. Qh4 {[%emt 0:08:02]} Bxa2 {[%emt 0:00:40]} 25. Bf5 {[%emt 0:00:55]} Bg8 {[%emt 0:00:50]} 26. Nc5 {[%emt 0:05:46]} b6 {[%emt 0:01:24]} 27. Nd3 {[%emt 0:00:37]} a5 {[%emt 0:00:38]} 28. Ne5 {[%emt 0:00:50]} a4 {[%emt 0:00:56]} 29. c4 {[%emt 0:14:40]} c5 {[%emt 0:05:01]} 30. Qf4 {[%emt 0:01:19]} Qe7 {[%emt 0:03:42]} 31. d5 {[%emt 0:01:03]} g5 {[%emt 0:20:05]} 32. Qe3 {[%emt 0:02:31]} Kg7 {[%emt 0:02:32]} 33. Ng4 {[%emt 0:21:24]} Qxe3+ {[%emt 0:00:40]} 34. Nxe3 {[%emt 0:00:05]} Bf7 {[%emt 0:00:26]} 35. Kf2 {[%emt 0:01:34]} Bg6 {[%emt 0:07:13]} 36. Bxg6 {[%emt 0:01:10]} Kxg6 {[%emt 0:00:13]} 37. Ke2 {[%emt 0:00:26]} a3 {[%emt 0:00:27]} 38. Nc2 {[%emt 0:01:26]} a2 {[%emt 0:00:03]} 39. Ke3 {[%emt 0:00:26]} Kf5 {[%emt 0:00:17]} 40. Kd3 {[%emt 0:00:50]} h5 {[%emt 0:07:23]} 41. Kc3 {[%emt 0:01:38]} Ke4 {[%emt 0:00:05]} 42. Kb2 {[%emt 0:00:42]} Kd3 $19 {[%emt 0:06:22]} 43. Na3 {[%emt 0:00:29]} h4 {[%emt 0:00:05]} 44. gxh4 {[%emt 0:00:52]} gxh4 {[%emt 0:00:04]} 45. Kxa2 {[%emt 0:00:04]} h3 {[%emt 0:00:37]} 46. Kb3 {[%emt 0:00:51]} Ke2 {[%emt 0:00:12]} 47. Nb1 {[%emt 0:00:27]} Kf2 {[%emt 0:02:27]} 48. Nd2 {[%emt 0:00:16]} Kg2 {[%emt 0:00:04]} 49. Ne4 {[%emt 0:00:12]} Kxh2 {[%emt 0:00:03]} 50. Ng5 {[%emt 0:00:12]} Kg3 {[%emt 0:02:40]} 51. Nxh3 {[%emt 0:00:12]} Kxh3 {[%emt 0:00:02]} 52. Ka4 {[%emt 0:00:17]} Kg4 {[%emt 0:00:25]} 53. Kb5 {[%emt 0:00:28]} Nd7 {[%emt 0:00:05]} 54. Kc6 {[%emt 0:00:20]} Ne5+ {[%emt 0:00:02]} 55. Kxb6 {[%emt 0:00:23]} Nxc4+ {[%emt 0:00:03]} 56. Kxc5 {[%emt 0:00:08]} Ne5 {[%emt 0:00:03]} 1/2-1/2

[Event "78th GEO-ch Women 1st League 2021"]
[Site "Tbilisi"]
[Date "2021.03.25"]
[Round "8.8"]
[White "Antia, Sopia"]
[Black "Javakhishvili, Mariam"]
[Result "1-0"]
[ECO "B22"]
[WhiteElo "1594"]
[BlackElo "1671"]
[Annotator "NA RC"]
[PlyCount "33"]
[EventDate "2021.03.18"]
[EventType "swiss"]
[EventCountry "GEO"]
[SourceTitle "playchess.com"]
[Source "ChessBase"]
[SourceQuality "1"]
[TimeControl "5400+30"]

1. e4 {[%emt 0:00:00]} c5 {[%emt 0:17:38]} 2. Nf3 {[%emt 0:00:00]} e6 {[%emt 0:00:06]} 3. c3 {[%emt 0:00:00]} d6 {[%emt 0:05:18]} 4. d4 {[%emt 0:01:39]} cxd4 {[%emt 0:00:07]} 5. cxd4 {[%emt 0:00:05]} g6 {[%emt 0:00:48]} 6. Bg5 {[%emt 0:03:02]} f6 {[%emt 0:00:06]} 7. Bd2 {[%emt 0:00:53]} Bg7 {[%emt 0:00:22]} 8. Nc3 {[%emt 0:05:08]} Ne7 {[%emt 0:00:12]} 9. Bb5+ {[%emt 0:00:28]} Bd7 {[%emt 0:00:39]} 10. Qb3 {[%emt 0:02:34]} O-O {[%emt 0:01:06]} 11. Bc4 {[%emt 0:02:06]} Kf7 {[%emt 0:03:52]} 12. Nb5 {[%emt 0:00:46]} Bc8 {[%emt 0:00:16]} 13. Bb4 {[%emt 0:00:59]} Nbc6 {[%emt 0:03:31]} 14. Nxd6+ {[%emt 0:00:25]} Kg8 {[%emt 0:00:09]} 15. Bxe6+ {[%emt 0:00:21]} Bxe6 {[%emt 0:00:36]} 16. Qxe6+ {[%emt 0:00:06]} Kh8 {[%emt 0:00:04]} 17. Bc3 {[%emt 0:02:43]} 1-0

[Event "78th GEO-ch Women 1st League 2021"]
[Site "Tbilisi"]
[Date "2021.03.25"]
[Round "8.9"]
[White "Gvatua, Mariam"]
[Black "Sordia, Marta"]
[Result "1-0"]
[ECO "E11"]
[WhiteElo "1343"]
[BlackElo "1226"]
[Annotator "NA"]
[PlyCount "65"]
[EventDate "2021.03.18"]
[EventType "swiss"]
[EventCountry "GEO"]
[SourceTitle "playchess.com"]
[Source "ChessBase"]
[SourceQuality "1"]
[TimeControl "5400+30"]

1. d4 {[%emt 0:00:00]} d5 {[%emt 0:00:00]} 2. c4 {[%emt 0:00:00]} e6 {[%emt 0:00:00]} 3. Nf3 {[%emt 0:00:00]} Nf6 {[%emt 0:00:02]} 4. g3 {[%emt 0:00:00]} Bb4+ {[%emt 0:00:10]} 5. Bd2 {[%emt 0:00:00]} Qe7 {[%emt 0:00:04]} 6. Nc3 {[%emt 0:01:01]} O-O {[%emt 0:02:01]} 7. Bg2 {[%emt 0:00:21]} c6 {[%emt 0:02:11]} 8. cxd5 {[%emt 0:02:16]} exd5 {[%emt 0:01:12]} 9. O-O {[%emt 0:00:25]} Bf5 {[%emt 0:07:29]} 10. Re1 {[%emt 0:01:23]} Ne4 {[%emt 0:02:42]} 11. Nxe4 {[%emt 0:00:44]} Bxe4 {[%emt 0:00:12]} 12. Qb3 {[%emt 0:05:35]} Na6 {[%emt 0:14:33]} 13. a3 {[%emt 0:01:59]} Bxd2 {[%emt 0:00:24]} 14. Nxd2 {[%emt 0:00:06]} c5 {[%emt 0:01:04]} 15. Nxe4 {[%emt 0:02:43]} dxe4 {[%emt 0:00:09]} 16. d5 {[%emt 0:03:45]} b6 {[%emt 0:05:03]} 17. Rad1 {[%emt 0:00:25]} Rad8 {[%emt 0:14:53]} 18. Qc4 {[%emt 0:00:27]} Nc7 {[%emt 0:00:05]} 19. Qxe4 {[%emt 0:03:01]} Qd6 {[%emt 0:01:19]} 20. Qa4 {[%emt 0:03:32]} a6 {[%emt 0:01:49]} 21. e4 {[%emt 0:01:29]} b5 {[%emt 0:03:29]} 22. Qc2 {[%emt 0:00:45]} f6 {[%emt 0:01:03]} 23. Rc1 {[%emt 0:04:57]} c4 {[%emt 0:01:07]} 24. a4 {[%emt 0:01:33]} Rc8 {[%emt 0:01:52]} 25. Bh3 {[%emt 0:01:57]} Rce8 {[%emt 0:02:37]} 26. axb5 {[%emt 0:00:28]} axb5 {[%emt 0:00:14]} 27. b3 {[%emt 0:00:28]} f5 {[%emt 0:08:22]} 28. Bxf5 {[%emt 0:08:33]} cxb3 {[%emt 0:00:33]} 29. Qxb3 {[%emt 0:01:43]} g6 {[%emt 0:07:01]} 30. Bh3 {[%emt 0:05:56]} Kg7 {[%emt 0:03:05]} 31. Qc3+ {[%emt 0:01:12]} Qf6 {[%emt 0:00:13]} 32. Qxf6+ {[%emt 0:00:20]} Rxf6 {[%emt 0:00:10]} 33. Rxc7+ {[%emt 0:00:03]} 1-0